bitfinex-derivatives/quotes_BTCF0:USTF0_20251103
["timestamp","ask_amount","ask_price","bid_price","bid_amount"]
[1762200144228,0.1546613,107210.0,107200.0,0.0448]
[1762200144827,0.1516779,107200.0,107190.0,0.0448]
[1762200145018,0.05836,107180.0,107170.0,0.1069508]
[1762200145225,0.05836,107180.0,107170.0,0.0448]
[1762200145427,0.37072248,107180.0,107170.0,0.1381363]
[1762200146236,0.1516876,107180.0,107170.0,0.1381363]
[1762200146733,0.1516876,107180.0,107170.0,0.1381365]
[1762200147037,0.34858818,107180.0,107170.0,0.0943365]
[1762200147332,0.37072818,107180.0,107170.0,0.1170865]
[1762200148422,0.05836,107180.0,107170.0,0.1391365]
[1762200148630,0.1516868,107180.0,107170.0,0.1381365]
[1762200149534,0.05836,107180.0,107170.0,0.1381365]
[1762200149837,0.04478,107180.0,107170.0,0.1381365]
[1762200150033,0.1381069,107180.0,107170.0,0.1381365]
[1762200150428,0.1381069,107180.0,107170.0,0.1391365]
[1762200150926,0.04478,107180.0,107170.0,0.1391365]
[1762200151127,0.1381068,107180.0,107170.0,0.1391365]
[1762200152038,0.04478,107180.0,107170.0,0.1391365]
[1762200152438,0.05771,107180.0,107170.0,0.1391365]
[1762200153129,0.1510364,107180.0,107170.0,0.1391365]
[1762200153837,0.05771,107180.0,107170.0,0.1525265]
[1762200154034,0.02264,107180.0,107170.0,0.1525265]
[1762200154236,0.05668,107180.0,107170.0,0.1525265]
[1762200154436,0.05668,107180.0,107170.0,0.1391365]
[1762200154638,0.1500064,107180.0,107170.0,0.1391365]
[1762200154941,0.05668,107180.0,107170.0,0.1391365]
[1762200155739,0.05668,107180.0,107170.0,0.1525265]
[1762200156140,0.1370764,107180.0,107170.0,0.1525265]
[1762200156538,0.1500064,107180.0,107170.0,0.1525265]
[1762200156841,0.1500064,107180.0,107170.0,0.1391365]
[1762200157539,0.1500064,107180.0,107170.0,0.0458]
[1762200157743,0.36904128,107180.0,107170.0,0.001]
[1762200157937,0.36904128,107180.0,107170.0,0.1156651]
[1762200158336,0.36904128,107180.0,107170.0,0.1371851]
[1762200159237,0.1500064,107180.0,107170.0,0.02233]
[1762200159444,0.1500064,107180.0,107170.0,0.02133]
[1762200159639,0.1496952,107170.0,107160.0,0.02133]
[1762200159939,0.1497039,107160.0,107150.0,0.18641078]
[1762200160537,0.05636,107160.0,107150.0,0.18641078]
[1762200161047,0.05636,107160.0,107150.0,0.18841078]
[1762200161243,0.1497039,107160.0,107150.0,0.18841078]
[1762200161843,0.05636,107160.0,107150.0,0.18841078]
[1762200162742,0.1497039,107160.0,107150.0,0.18841078]
[1762200163654,0.06588791,107160.0,107150.0,0.18841078]
[1762200164550,0.15923181,107160.0,107150.0,0.18841078]
[1762200165450,0.06588791,107160.0,107150.0,0.18841078]
[1762200167552,0.06588791,107160.0,107150.0,0.19674078]
[1762200167942,0.05636,107160.0,107150.0,0.19674078]
[1762200168753,0.04343,107160.0,107150.0,0.19674078]
[1762200169347,0.1506741,107160.0,107150.0,0.18841078]
[1762200169549,0.29059969,107160.0,107150.0,0.18841078]
[1762200169857,0.29059969,107160.0,107150.0,0.1381972]
[1762200170947,0.19725559,107160.0,107150.0,0.1381972]
[1762200171150,0.0665299,107160.0,107150.0,0.1381972]
[1762200171347,0.1598739,107160.0,107150.0,0.1381972]
[1762200171543,0.29059959,107160.0,107150.0,0.002]
[1762200171746,0.1525615,107140.0,107130.0,0.18841348]
[1762200171947,0.28328719,107140.0,107130.0,0.09504358]
[1762200172148,0.28328719,107140.0,107110.0,0.1017117]
[1762200172149,0.1525789,107120.0,107110.0,0.05021358]
[1762200172363,0.1525876,107110.0,107100.0,0.19151647]
[1762200172544,0.18992569,107110.0,107100.0,0.19152097]
[1762200172747,0.18992569,107110.0,107100.0,0.14130739]
[1762200173151,0.05451838,107110.0,107100.0,0.14963739]
[1762200173755,0.06841838,107110.0,107100.0,0.14330739]
[1762200174746,0.06841838,107110.0,107100.0,0.15163739]
[1762200175149,0.06841838,107110.0,107100.0,0.14330739]
[1762200176454,0.03608,107120.0,107110.0,0.1150077]
[1762200176757,0.0592,107120.0,107110.0,0.1382177]
[1762200178056,0.1525789,107120.0,107110.0,0.1382177]
[1762200178255,0.0592,107120.0,107110.0,0.1382177]
[1762200179562,0.0453,107140.0,107130.0,0.1290102]
[1762200179864,0.0453,107140.0,107130.0,0.60423589]
[1762200180247,0.0592,107140.0,107130.0,0.4735102]
[1762200181261,0.0453,107150.0,107140.0,0.1249017]
[1762200181457,0.0453,107150.0,107140.0,0.1465217]
[1762200181853,0.0592,107150.0,107140.0,0.1381917]
[1762200182360,0.0592,107150.0,107140.0,0.1391917]
[1762200183153,0.28327859,107150.0,107140.0,0.1391916]
[1762200183347,0.28327859,107150.0,107140.0,0.001]
[1762200183757,0.0453,107120.0,107110.0,0.15654538]
[1762200183958,0.28330479,107120.0,107110.0,0.4610918]
[1762200184155,0.28330479,107120.0,107110.0,0.04483]
[1762200184354,0.28330479,107120.0,107110.0,0.1382179]
[1762200184756,0.1525791,107120.0,107110.0,0.1382179]
[1762200185263,0.1525792,107120.0,107110.0,0.1422179]
[1762200185451,0.0592,107120.0,107110.0,0.1422179]
[1762200185857,0.1525792,107120.0,107110.0,0.1422179]
[1762200186560,0.28330489,107120.0,107110.0,0.02562]
[1762200186959,0.28330489,107120.0,107110.0,0.0973879]
[1762200187459,0.0592,107120.0,107110.0,0.1422179]
[1762200188061,0.0592,107120.0,107110.0,0.1551679]
[1762200188358,0.0592,107120.0,107110.0,0.1382179]
[1762200188866,0.1525791,107120.0,107110.0,0.1382179]
[1762200189362,0.0592,107120.0,107110.0,0.1382179]
[1762200189660,0.0592,107120.0,107110.0,0.001]
[1762200189869,0.28330489,107120.0,107110.0,0.001]
[1762200190263,0.28330489,107120.0,107110.0,0.02262]
[1762200190466,0.28330489,107120.0,107110.0,0.1160079]
[1762200190972,0.28330489,107120.0,107110.0,0.1150079]
[1762200191262,0.28330489,107120.0,107110.0,0.1382179]
[1762200191568,0.0592,107120.0,107110.0,0.1382179]
[1762200191867,0.1525791,107120.0,107110.0,0.1382179]
[1762200192064,0.0592,107120.0,107110.0,0.1382179]
[1762200192268,0.1525791,107120.0,107110.0,0.1382179]
[1762200192457,0.0592,107120.0,107110.0,0.1382179]
[1762200192656,0.1525617,107140.0,107130.0,0.1382004]
[1762200193562,0.0592,107140.0,107130.0,0.1382004]
[1762200194164,0.0602,107140.0,107130.0,0.1382004]
[1762200194562,0.0453,107140.0,107130.0,0.1382004]
[1762200194766,0.0453,107140.0,107130.0,0.1392004]
[1762200195166,0.1386618,107140.0,107130.0,0.04583]
[1762200195465,0.59270749,107140.0,107130.0,0.001]
[1762200195667,0.1388605,107130.0,107120.0,0.0933784]
[1762200195970,0.26958619,107130.0,107120.0,0.0933784]
[1762200196163,0.138878,107110.0,107100.0,0.14063069]
[1762200196363,0.26960369,107110.0,107100.0,0.14063069]
[1762200196565,0.26960369,107110.0,107100.0,0.02535109]
[1762200196959,0.04549,107110.0,107100.0,0.14063779]
[1762200197168,0.04549,107110.0,107100.0,0.15306779]
[1762200197371,0.138878,107110.0,107100.0,0.14063779]
[1762200197572,0.04549,107110.0,107100.0,0.14063779]
[1762200197873,0.04549,107110.0,107100.0,0.14163779]
[1762200198875,0.138878,107110.0,107100.0,0.14163779]
[1762200199063,0.138878,107110.0,107100.0,0.04824109]
[1762200199470,0.04549,107110.0,107100.0,0.14163779]
[1762200199773,0.14835644,107110.0,107100.0,0.14163779]
[1762200199971,0.27908213,107110.0,107100.0,0.09747779]
[1762200200372,0.27908213,107110.0,107100.0,0.11974779]
[1762200200869,0.14835644,107110.0,107100.0,0.11974779]
[1762200201175,0.04549,107110.0,107100.0,0.14163779]
[1762200202273,0.02277,107110.0,107100.0,0.15406779]
[1762200202468,0.05821,107120.0,107110.0,0.137548]
[1762200202674,0.02277,107120.0,107110.0,0.137548]
[1762200202872,0.02277,107120.0,107110.0,0.26827369]
[1762200203265,0.04549,107120.0,107110.0,0.31848727]
[1762200203463,0.05821,107120.0,107110.0,0.31848727]
[1762200203669,0.05821,107120.0,107110.0,0.137548]
[1762200204076,0.05821,107120.0,107110.0,0.18776158]
[1762200204277,0.04549,107120.0,107110.0,0.18776158]
[1762200204576,0.60243595,107140.0,107130.0,0.1156406]
[1762200204785,0.62433492,107140.0,107130.0,0.1156406]
[1762200205176,0.1388604,107130.0,107120.0,0.1375339]
[1762200206379,0.1515892,107120.0,107110.0,0.1385445]
[1762200206587,0.28231489,107120.0,107110.0,0.1375445]
[1762200207388,0.05821,107120.0,107110.0,0.1375445]
[1762200208187,0.1515892,107120.0,107110.0,0.02189]
[1762200208388,0.137638,107110.0,107100.0,0.00308109]
[1762200208690,0.26836369,107110.0,107100.0,0.00308109]
[1762200208892,0.29021302,107110.0,107100.0,0.00308109]
[1762200209083,0.26836369,107110.0,107100.0,0.00308109]
[1762200209590,0.26836369,107110.0,107100.0,0.00408109]
[1762200211187,0.26836369,107110.0,107100.0,0.09747779]
[1762200211390,0.29021124,107110.0,107100.0,0.09747779]
[1762200212187,0.29021124,107110.0,107100.0,0.12034779]
[1762200212485,0.30318124,107110.0,107100.0,0.09747779]
[1762200212690,0.30318124,107110.0,107100.0,0.00408109]
[1762200213688,0.1508359,107100.0,107090.0,9.08e-05]
[1762200213888,0.60492159,107100.0,107090.0,9.08e-05]
[1762200214084,0.60492159,107100.0,107070.0,0.14362858]
[1762200214085,0.1508542,107080.0,107070.0,0.09634358]
[1762200214295,0.1508629,107070.0,107060.0,0.00308224]
[1762200214482,0.30345522,107070.0,107060.0,0.00308224]
[1762200214689,0.04425,107050.0,107040.0,0.18979268]
[1762200215087,0.04433966,107050.0,107040.0,0.1395791]
[1762200215785,0.13778006,107050.0,107040.0,0.1395791]
[1762200215987,0.04433966,107050.0,107040.0,0.1395791]
[1762200216186,0.04433966,107050.0,107040.0,0.1425791]
[1762200216789,0.02149966,107050.0,107040.0,0.1425791]
[1762200216991,8.966e-05,107050.0,107040.0,0.1425791]
[1762200217793,8.966e-05,107050.0,107040.0,0.27330479]
[1762200220594,8.966e-05,107050.0,107040.0,0.1425791]
[1762200222496,8.966e-05,107050.0,107040.0,0.1542891]
[1762200222694,8.966e-05,107050.0,107040.0,0.20450268]
[1762200223198,8.966e-05,107050.0,107040.0,0.1542891]
[1762200223397,0.04433966,107050.0,107040.0,0.1542891]
[1762200223991,8.966e-05,107050.0,107040.0,0.1542891]
[1762200224396,0.02149966,107050.0,107040.0,0.1542891]
[1762200224896,0.04318966,107050.0,107040.0,0.1542891]
[1762200226599,0.05631966,107050.0,107040.0,0.4659791]
[1762200227002,0.28048575,107050.0,107040.0,0.4659791]
[1762200227796,0.18704535,107050.0,107040.0,0.4659791]
[1762200228399,0.05631966,107050.0,107040.0,0.4659791]
[1762200228700,0.14976006,107050.0,107040.0,0.1425791]
[1762200228897,0.14976006,107050.0,107040.0,0.02587]
[1762200229201,0.34191516,107050.0,107040.0,0.003]
[1762200229401,0.34191516,107050.0,107040.0,0.0964491]
[1762200230298,0.34191516,107050.0,107040.0,0.04646]
[1762200230599,0.34191516,107050.0,107040.0,0.003]
[1762200230799,0.34191516,107050.0,107040.0,0.096449]
[1762200231302,0.01313,107040.0,107030.0,0.1369112]
[1762200231595,0.05756,107040.0,107030.0,0.1369112]
[1762200232394,0.05756,107040.0,107030.0,0.1399112]
[1762200233895,0.1510084,107040.0,107030.0,0.1399112]
[1762200234406,0.05756,107040.0,107030.0,0.1399112]
[1762200234606,0.05756,107040.0,107030.0,0.1528612]
[1762200235806,0.04451966,107050.0,107040.0,0.1486194]
[1762200236006,0.05764966,107050.0,107040.0,0.1369094]
[1762200237008,0.05764966,107050.0,107040.0,0.1486194]
[1762200237299,0.15109026,107050.0,107040.0,0.1389094]
[1762200237505,0.15109026,107050.0,107040.0,0.04546]
[1762200237907,0.34324536,107050.0,107040.0,0.04546]
[1762200238201,0.34324536,107050.0,107040.0,0.1389093]
[1762200238800,0.34324536,107050.0,107040.0,0.1166193]
[1762200238998,0.34324536,107050.0,107040.0,0.0954493]
[1762200239297,0.34324536,107050.0,107040.0,0.1166193]
[1762200239498,0.34324536,107050.0,107040.0,0.1389093]
[1762200239694,0.34324536,107050.0,107040.0,0.04546]
[1762200240104,0.34324536,107050.0,107040.0,0.02317]
[1762200240608,0.34324536,107050.0,107040.0,0.1389093]
[1762200241106,0.34324536,107050.0,107040.0,0.002]
[1762200242111,0.36517877,107050.0,107040.0,0.002]
[1762200242415,0.36517874,107050.0,107040.0,0.002]
[1762200242709,0.36517874,107050.0,107040.0,0.0954495]
[1762200243809,0.36517874,107050.0,107040.0,0.0944495]
[1762200244209,0.36517874,107050.0,107040.0,0.1156195]
[1762200244406,0.07958304,107050.0,107040.0,0.1379095]
[1762200244609,0.40274304,107050.0,107040.0,0.1379095]
[1762200244811,0.38080966,107050.0,107040.0,0.1508595]
[1762200245714,0.38080966,107050.0,107040.0,0.1379095]
[1762200247610,0.04451966,107050.0,107040.0,0.1508595]
[1762200247815,0.04451966,107050.0,107040.0,0.20107308]
[1762200248015,0.05764966,107050.0,107040.0,0.20107308]
[1762200248217,0.15109006,107050.0,107040.0,0.18812308]
[1762200248620,0.34324516,107050.0,107040.0,0.18812268]
[1762200248809,0.24980476,107050.0,107040.0,0.1379091]
[1762200249316,0.05764966,107050.0,107040.0,0.1379091]
[1762200251223,0.15109006,107050.0,107040.0,0.1379091]
[1762200251524,0.05764966,107050.0,107040.0,0.1379091]
[1762200252316,0.07961781,107050.0,107040.0,0.1379091]
[1762200252518,0.07961781,107050.0,107040.0,0.1496191]
[1762200253123,0.17305821,107050.0,107040.0,0.1379091]
[1762200253529,0.17305821,107050.0,107040.0,0.18812268]
[1762200255128,0.36521331,107050.0,107040.0,0.18812268]
[1762200255427,0.36521331,107050.0,107040.0,0.09467358]
[1762200255619,0.68837331,107050.0,107040.0,0.0944491]
[1762200255816,0.68837331,107050.0,107040.0,0.001]
[1762200256020,0.1497691,107040.0,107030.0,0.14367138]
[1762200256329,0.36389235,107040.0,107030.0,0.0934578]
[1762200257324,0.36389235,107040.0,107030.0,0.1156978]
[1762200257531,0.36389235,107040.0,107030.0,0.002]
[1762200258123,0.36389235,107040.0,107030.0,0.0954579]
[1762200258934,0.36389235,107040.0,107030.0,0.0934579]
[1762200259228,0.36389235,107040.0,107030.0,0.1385179]
[1762200259623,0.68729235,107040.0,107030.0,0.1166979]
[1762200260026,0.68729235,107040.0,107030.0,0.1385179]
[1762200260234,0.68729235,107040.0,107030.0,0.1166979]
[1762200262233,0.68729235,107040.0,107030.0,0.0944579]
[1762200263334,0.68721235,107040.0,107030.0,0.0944579]
[1762200263827,0.36389235,107040.0,107030.0,0.0944579]
[1762200264031,0.68721235,107040.0,107030.0,0.0944579]
[1762200264435,0.59376325,107040.0,107030.0,0.1385179]
[1762200264728,0.68721225,107040.0,107030.0,0.1385179]
[1762200265034,0.68721225,107040.0,107030.0,0.1166979]
[1762200265729,0.59376325,107040.0,107030.0,0.1385179]
[1762200265935,0.68721225,107040.0,107030.0,0.1385179]
[1762200266139,0.49505715,107040.0,107030.0,0.1385179]
[1762200266734,0.40160815,107040.0,107030.0,0.1385179]
[1762200266933,0.49505715,107040.0,107030.0,0.1385179]
[1762200269840,0.40160815,107040.0,107030.0,0.1385179]
[1762200270339,0.49505705,107040.0,107030.0,0.1385179]
[1762200270639,0.40160815,107040.0,107030.0,0.1385179]
[1762200271438,0.49505705,107040.0,107030.0,0.1385179]
[1762200272439,0.68721215,107040.0,107030.0,0.1385179]
[1762200273838,0.07828815,107040.0,107030.0,0.1385179]
[1762200274143,0.10328478,107070.0,107060.0,0.1534316]
[1762200274441,0.04471,107070.0,107060.0,0.20367908]
[1762200275239,0.04471,107070.0,107060.0,0.1534316]
[1762200275741,0.04771,107070.0,107060.0,0.20367908]
[1762200277034,0.04471,107070.0,107060.0,0.20367908]
[1762200277937,0.02184,107070.0,107060.0,0.20367908]
[1762200278142,0.05384172,107080.0,107070.0,0.1534229]
[1762200278639,0.04471,107080.0,107070.0,0.4767429]
[1762200278938,0.1508455,107090.0,107080.0,0.1534113]
[1762200279137,0.04471,107090.0,107080.0,0.1534113]
[1762200280140,0.03120165,107090.0,107080.0,0.1534113]
[1762200280442,0.00936165,107090.0,107080.0,0.1534113]
[1762200280630,0.54968019,107110.0,107100.0,0.1397768]
[1762200280835,0.1381068,107100.0,107090.0,0.1533994]
[1762200281744,0.1381068,107100.0,107090.0,0.1534055]
[1762200282045,0.1508368,107100.0,107090.0,0.04638]
[1762200282337,0.1381155,107090.0,107080.0,0.1534083]
[1762200282544,0.05416452,107090.0,107080.0,0.1534083]
[1762200282938,0.55368069,107110.0,107100.0,0.1533968]
[1762200283143,0.54968069,107110.0,107100.0,0.1533968]
[1762200283338,0.38076,107110.0,107100.0,0.1533968]
[1762200283544,0.4741481,107110.0,107100.0,0.1533968]
[1762200284448,0.4781481,107110.0,107100.0,0.1533968]
[1762200285145,0.4748893,107110.0,107100.0,0.1533968]
[1762200285344,0.3815013,107110.0,107100.0,0.1533968]
[1762200285542,0.32732,107110.0,107100.0,0.1533968]
[1762200285740,0.004,107110.0,107100.0,0.1533968]
[1762200286242,0.004,107110.0,107100.0,0.7100768]
[1762200287238,0.04245,107120.0,107110.0,0.1528479]
[1762200288244,0.1358294,107120.0,107110.0,0.1528479]
[1762200289235,0.1437394,107120.0,107110.0,0.04602]
[1762200289541,0.3358945,107120.0,107110.0,0.139408]
[1762200289747,0.3358945,107120.0,107110.0,0.04602]
[1762200289948,0.3358945,107120.0,107110.0,0.139408]
[1762200290149,0.3358945,107120.0,107110.0,0.152848]
[1762200290350,0.27461254,107120.0,107110.0,0.152848]
[1762200290546,0.27661254,107120.0,107110.0,0.152848]
[1762200291153,0.27661254,107120.0,107110.0,0.05946]
[1762200291650,0.27661254,107120.0,107110.0,0.152848]
[1762200292446,0.148568,107110.0,107100.0,0.1165266]
[1762200292652,0.27944114,107110.0,107100.0,0.1394166]
[1762200293251,0.17332314,107110.0,107100.0,0.1528566]
[1762200293546,0.36753,107120.0,107110.0,0.152848]
[1762200294247,0.05469333,107130.0,107120.0,0.05946]
[1762200294449,0.05469333,107130.0,107120.0,0.1528392]
[1762200294654,0.003,107130.0,107120.0,0.1528392]
[1762200295043,0.003,107130.0,107120.0,0.4759992]
[1762200295549,0.02431,107130.0,107120.0,0.4759992]
[1762200295749,0.003,107130.0,107120.0,0.60687234]
[1762200296454,0.03052596,107150.0,107140.0,0.1528217]
[1762200296647,0.05166596,107150.0,107140.0,0.1528217]
[1762200297852,0.14501896,107150.0,107140.0,0.1528217]
[1762200298247,0.05166596,107150.0,107140.0,0.1528217]
[1762200298645,0.14501896,107150.0,107140.0,0.1528217]
[1762200298845,0.2788921,107150.0,107140.0,0.1528217]
[1762200300148,0.2788921,107150.0,107140.0,0.05946]
[1762200300549,0.2788921,107150.0,107140.0,0.1528219]
[1762200300754,0.2916221,107150.0,107140.0,0.04602]
[1762200300953,0.2916221,107150.0,107140.0,0.1393819]
[1762200301144,0.2916221,107150.0,107140.0,0.1528219]
[1762200301544,0.01221596,107150.0,107140.0,0.1528219]
[1762200301754,0.003,107150.0,107140.0,0.1528219]
[1762200302058,0.003,107150.0,107140.0,0.84005504]
[1762200302254,0.05472272,107170.0,107160.0,0.1528046]
[1762200302655,0.14805862,107170.0,107160.0,0.1528046]
[1762200303452,0.27893176,107170.0,107160.0,0.05946]
[1762200304160,0.27893176,107170.0,107160.0,0.1528039]
[1762200304356,0.27893176,107170.0,107160.0,0.05946]
[1762200304560,0.04245,107150.0,107130.0,0.01344]
[1762200304749,0.17332314,107140.0,107130.0,0.15283]
[1762200305256,0.04245,107140.0,107130.0,0.15283]
[1762200306461,0.1358113,107140.0,107130.0,0.15283]
[1762200307357,0.26668444,107140.0,107130.0,0.05946]
[1762200307563,0.1358294,107120.0,107110.0,0.04602]
[1762200307762,0.27944254,107120.0,107110.0,0.02313]
[1762200307963,0.17332314,107120.0,107110.0,0.1528485]
[1762200308158,0.26670184,107120.0,107110.0,0.1528485]
[1762200308655,0.27944184,107120.0,107110.0,0.04602]
[1762200308960,0.1358374,107110.0,107100.0,0.1528487]
[1762200309363,0.04245,107110.0,107100.0,0.1528487]
[1762200309563,0.1358374,107110.0,107100.0,0.1528487]
[1762200310766,0.04245,107110.0,107100.0,0.1528487]
[1762200311460,0.14461314,107120.0,107110.0,0.1528474]
[1762200311461,0.04245,107120.0,107110.0,0.1528474]
[1762200311767,0.60261534,107140.0,107130.0,0.1528306]
[1762200311965,0.1358122,107140.0,107130.0,0.1528306]
[1762200312464,0.04245,107140.0,107130.0,0.1528306]
[1762200313052,0.32324,107150.0,107140.0,0.1164911]
[1762200313256,0.38743,107150.0,107140.0,0.1393811]
[1762200313468,0.4807825,107150.0,107140.0,0.1393811]
[1762200313661,0.61165564,107150.0,107140.0,0.04602]
[1762200314162,0.61165564,107150.0,107140.0,0.1393811]
[1762200315161,0.61165564,107150.0,107140.0,0.04602]
[1762200315361,0.61165564,107150.0,107130.0,0.1374672]
[1762200315362,0.1497011,107140.0,107130.0,0.1374672]
[1762200315567,0.28057424,107140.0,107130.0,0.1374672]
[1762200316070,0.30232705,107140.0,107130.0,0.1374699]
[1762200316366,0.30232705,107140.0,107130.0,0.0441]
[1762200316560,0.04361,107130.0,107120.0,0.1509135]
[1762200317363,0.4602084,107150.0,107140.0,0.1374613]
[1762200317668,0.61283862,107150.0,107140.0,0.1501013]
[1762200318265,0.61283862,107150.0,107140.0,0.1374613]
[1762200318460,0.61283862,107150.0,107140.0,0.02297]
[1762200318671,0.1497012,107140.0,107130.0,0.02297]
[1762200318861,0.30233142,107140.0,107130.0,0.1374699]
[1762200319169,0.30233142,107140.0,107130.0,0.02297]
[1762200319472,0.1369799,107130.0,107120.0,0.1509108]
[1762200319672,0.26785304,107130.0,107120.0,0.1509108]
[1762200319857,0.28059304,107130.0,107120.0,0.0441]
[1762200320169,0.04361,107110.0,107100.0,0.1509303]
[1762200320471,0.26787154,107110.0,107100.0,0.1509303]
[1762200321063,0.04361,107110.0,107100.0,0.1509303]
[1762200321276,0.46039,107120.0,107110.0,0.1374887]
[1762200321565,0.61302468,107120.0,107110.0,0.1374887]
[1762200322764,0.61302468,107120.0,107110.0,0.0441]
[1762200323070,0.61302468,107120.0,107110.0,0.1163584]
[1762200323273,0.61302468,107120.0,107110.0,0.1374884]
[1762200323464,0.38877154,107120.0,107110.0,0.1374884]
[1762200324372,0.38877154,107120.0,107110.0,0.1501284]
[1762200324567,0.02247,107120.0,107110.0,0.1501284]
[1762200324779,0.38152674,107140.0,107130.0,0.11634]
[1762200325072,0.72664961,107140.0,107130.0,0.11634]
[1762200325270,0.72664961,107140.0,107130.0,0.13747]
[1762200325568,0.72664961,107140.0,107130.0,0.0441]
[1762200325873,0.37824401,107140.0,107130.0,0.02297]
[1762200326074,0.1369781,107130.0,107120.0,0.1501145]
[1762200326275,0.1448979,107120.0,107110.0,0.1501187]
[1762200326475,0.27577104,107120.0,107110.0,0.1374787]
[1762200326669,0.1497266,107110.0,107100.0,0.1509293]
[1762200326974,0.28059974,107110.0,107100.0,0.1509293]
[1762200327170,0.28059974,107110.0,107100.0,0.1509353]
[1762200327374,0.26786974,107110.0,107100.0,0.1509353]
[1762200327768,0.04361,107110.0,107100.0,0.1509353]
[1762200328080,0.36588,107120.0,107110.0,0.1505667]
[1762200328267,0.36584,107120.0,107110.0,0.1505667]
[1762200328571,0.04252,107130.0,107120.0,0.1505579]
[1762200328770,0.26200634,107150.0,107120.0,0.1289079]
[1762200328969,0.62466609,107150.0,107140.0,0.0439]
[1762200329177,0.1486105,107140.0,107130.0,0.1372632]
[1762200329363,0.1358892,107130.0,107120.0,0.1505553]
[1762200329568,0.26676234,107130.0,107120.0,0.1505553]
[1762200329769,0.1358892,107130.0,107120.0,0.1515553]
[1762200331077,0.1358892,107130.0,107120.0,0.1505553]
[1762200332472,0.04252,107130.0,107120.0,0.1505553]
[1762200333482,0.1358892,107130.0,107120.0,0.1505553]
[1762200334084,0.1358892,107130.0,107120.0,0.0439]
[1762200334291,0.1358892,107130.0,107110.0,0.1505616]
[1762200334292,0.05526,107120.0,107110.0,0.1505616]
[1762200334582,0.27951104,107120.0,107110.0,0.1505616]
[1762200334788,0.04252,107120.0,107110.0,0.1505616]
[1762200334989,0.4593353,107130.0,107120.0,0.1505579]
[1762200335188,0.48102943,107130.0,107120.0,0.1505579]
[1762200335389,0.49376943,107130.0,107120.0,0.1372779]
[1762200336381,0.143808,107120.0,107110.0,0.20180928]
[1762200336582,0.27468114,107120.0,107110.0,0.1382818]
[1762200336892,0.1486454,107100.0,107090.0,0.05024748]
[1762200337083,0.1486641,107090.0,107080.0,0.17859028]
[1762200337280,0.27953724,107090.0,107080.0,0.16531028]
[1762200337583,0.28895938,107090.0,107080.0,0.1373128]
[1762200338288,0.19555528,107090.0,107080.0,0.1373128]
[1762200338491,0.18613314,107090.0,107080.0,0.1373128]
[1762200338687,0.27953664,107090.0,107080.0,0.1393128]
[1762200339289,0.27953664,107090.0,107080.0,0.002]
[1762200339788,0.27953664,107090.0,107080.0,0.1170632]
[1762200340191,0.28869581,107090.0,107080.0,0.002]
[1762200340695,0.31037472,107090.0,107080.0,0.0954131]
[1762200340888,0.31037472,107090.0,107080.0,0.002]
[1762200341492,0.1359331,107080.0,107070.0,0.0935149]
[1762200341794,0.59032624,107080.0,107070.0,0.0935149]
[1762200342182,0.4594531,107080.0,107070.0,0.1151649]
[1762200342388,0.49691314,107080.0,107070.0,0.1374149]
[1762200342582,0.36604,107080.0,107070.0,0.1374149]
[1762200342889,0.4594531,107080.0,107070.0,0.1374149]
[1762200343092,0.59032624,107080.0,107070.0,0.1374149]
[1762200343495,0.59132624,107080.0,107070.0,0.1374149]
[1762200344394,0.59923624,107080.0,107070.0,0.1374149]
[1762200346292,0.59923624,107080.0,107070.0,0.1509249]
[1762200346699,0.50582314,107080.0,107070.0,0.1509249]
[1762200346895,0.59923624,107080.0,107070.0,0.1374149]
[1762200347703,0.36704,107080.0,107070.0,0.1509249]
[1762200348195,0.4604531,107080.0,107070.0,0.1509249]
[1762200348687,0.59132624,107080.0,107070.0,0.1509249]
[1762200348997,0.49791314,107080.0,107070.0,0.1509249]
[1762200349200,0.59132624,107080.0,107070.0,0.1509249]
[1762200350308,0.59923624,107080.0,107070.0,0.1376759]
[1762200350493,0.59923624,107080.0,107070.0,0.1511859]
[1762200351198,0.59923624,107080.0,107070.0,0.1376759]
[1762200351400,0.59132624,107080.0,107070.0,0.1511859]
[1762200351792,0.49791314,107080.0,107070.0,0.1511859]
[1762200352394,0.4604532,107080.0,107070.0,0.1511859]
[1762200352701,0.36704,107080.0,107070.0,0.1511859]
[1762200352896,0.04352,107080.0,107070.0,0.1511859]
[1762200353104,0.36688,107080.0,107070.0,0.1511859]
[1762200353291,0.04352,107080.0,107070.0,0.1511859]
[1762200353701,0.04252,107080.0,107070.0,0.1511859]
[1762200354398,0.02126,107080.0,107070.0,0.1511859]
[1762200354709,0.1437731,107080.0,107070.0,0.1511859]
[1762200355498,0.33584546,107080.0,107070.0,9.4e-05]
[1762200355700,0.33584546,107080.0,107070.0,0.0935163]
[1762200355896,0.33584546,107080.0,107070.0,9.4e-05]
[1762200355897,0.33684546,107080.0,107070.0,9.4e-05]
[1762200356896,0.1501297,107050.0,107040.0,0.1520185]
[1762200357098,0.24876236,107050.0,107040.0,0.1520185]
[1762200357407,0.1501298,107050.0,107040.0,0.1520185]
[1762200357797,0.13748494,107050.0,107040.0,0.1520185]
[1762200357995,0.04404514,107050.0,107040.0,0.1520185]
[1762200358203,0.13748494,107050.0,107040.0,0.1520185]
[1762200358899,0.04404514,107050.0,107040.0,0.1520185]
[1762200359099,0.04404514,107050.0,107040.0,0.1530185]
[1762200359399,0.13748494,107050.0,107040.0,0.1530185]
[1762200360799,0.04404514,107050.0,107040.0,0.1530185]
[1762200360993,9.514e-05,107050.0,107040.0,0.1530185]
[1762200361199,0.04404514,107050.0,107040.0,0.1530185]
[1762200361899,0.13748494,107050.0,107040.0,0.1530185]
[1762200363693,0.13748494,107050.0,107040.0,0.05957]
[1762200363909,0.3422973,107050.0,107040.0,0.001]
[1762200364100,0.36401293,107050.0,107040.0,0.001]
[1762200364299,0.36400631,107050.0,107040.0,0.001]
[1762200364493,0.3422973,107050.0,107040.0,0.0944475]
[1762200364706,0.3422973,107050.0,107040.0,0.001]
[1762200365211,0.36401939,107050.0,107040.0,0.001]
[1762200365601,0.1373983,107040.0,107030.0,0.152027]
[1762200365912,0.65291066,107040.0,107030.0,0.152027]
[1762200366301,0.66082066,107040.0,107030.0,0.152027]
[1762200366606,0.65291066,107040.0,107030.0,0.152027]
[1762200367602,0.4608383,107040.0,107030.0,0.05857]
[1762200367804,0.65291066,107040.0,107030.0,0.1520269]
[1762200368901,0.65291066,107040.0,107020.0,0.01659339]
[1762200368902,0.1501369,107030.0,107020.0,0.00308339]
[1762200369100,0.3423044,107030.0,107020.0,0.00308339]
[1762200370011,0.15023204,107030.0,107020.0,0.15511899]
[1762200370314,0.47379204,107030.0,107020.0,0.04814339]
[1762200370709,0.48301842,107030.0,107020.0,0.14160889]
[1762200370905,0.67509078,107030.0,107020.0,0.14160889]
[1762200372610,0.67509078,107030.0,107020.0,0.15511889]